bitfinex/quotes_BTCUSD_20240817
["timestamp","ask_amount","ask_price","bid_price","bid_amount"]
[1723904499646,0.000825,59433.0,59432.0,0.774772]
[1723904499852,0.000825,59433.0,59432.0,0.775772]
[1723904501225,0.000825,59433.0,59432.0,0.523383]
[1723904502434,0.000825,59433.0,59432.0,0.462183]
[1723904502668,0.000825,59433.0,59432.0,0.379583]
[1723904511757,0.000825,59433.0,59432.0,0.127194]
[1723904513239,0.000825,59433.0,59432.0,0.379583]
[1723904517021,0.807887,59433.0,59432.0,0.001]
[1723904517257,1.07504154,59433.0,59432.0,0.001]
[1723904517448,1.32742654,59433.0,59432.0,0.001]
[1723904518534,0.126214,59423.0,59419.0,0.126222]
[1723904520075,0.127214,59423.0,59419.0,0.127222]
[1723904520528,0.001,59423.0,59420.0,0.126218]
[1723904520743,0.127213,59423.0,59420.0,0.126218]
[1723904520960,0.127213,59423.0,59419.0,0.001]
[1723904520961,0.127213,59423.0,59419.0,0.127222]
[1723904521874,0.126213,59423.0,59419.0,0.126222]
[1723904522293,0.127213,59423.0,59420.0,0.001]
[1723904522538,0.126213,59423.0,59419.0,0.126222]
[1723904522753,0.127213,59423.0,59419.0,0.127222]
[1723904524625,0.001,59423.0,59420.0,0.126219]
[1723904525760,0.191811,59424.0,59420.0,0.126219]
[1723904525960,0.001,59423.0,59420.0,0.127219]
[1723904526496,0.127214,59423.0,59420.0,0.001]
[1723904526697,0.126214,59423.0,59419.0,0.126221]
[1723904526900,0.126214,59423.0,59420.0,0.001]
[1723904528914,0.126214,59423.0,59419.0,0.126221]
[1723904529346,0.127214,59423.0,59420.0,0.12722]
[1723904529787,0.126214,59423.0,59420.0,0.12622]
[1723904529995,0.133214,59423.0,59420.0,0.12622]
[1723904530358,0.126214,59423.0,59420.0,0.12622]
[1723904530542,0.130214,59423.0,59420.0,0.12622]
[1723904530743,0.130214,59423.0,59419.0,0.126221]
[1723904531317,0.004,59423.0,59419.0,0.0009075]
[1723904531579,0.004,59423.0,59421.0,0.126217]
[1723904531779,0.004,59423.0,59420.0,0.126219]
[1723904532309,0.191812,59424.0,59420.0,0.126219]
[1723904532631,0.126216,59422.0,59419.0,0.0009075]
[1723904532871,0.252429,59423.0,59419.0,0.0009075]
[1723904533095,0.1475,59421.0,59419.0,0.0009075]
[1723904533512,0.273719,59421.0,59419.0,0.0009075]
[1723904533686,0.12622,59420.0,59419.0,0.0009075]
[1723904533912,0.37866,59420.0,59419.0,0.0009075]
[1723904534114,0.12622,59420.0,59419.0,0.0009075]
[1723904534314,0.37866,59420.0,59419.0,0.0009075]
[1723904534889,0.12622,59420.0,59419.0,0.0009075]
[1723904536280,0.13222,59420.0,59419.0,0.0009075]
[1723904539807,0.006,59420.0,59419.0,0.0009075]
[1723904541693,0.13222,59420.0,59419.0,0.0009075]
[1723904542422,0.38466,59420.0,59419.0,0.0009075]
[1723904543316,0.53256,59420.0,59419.0,0.0009075]
[1723904543750,0.98655454,59420.0,59419.0,0.0009075]
[1723904544578,1.08075454,59420.0,59419.0,0.0009075]
[1723904546155,1.33319454,59420.0,59419.0,0.0009075]
[1723904548650,1.46752282,59420.0,59419.0,0.0009075]
[1723904549064,1.33319454,59420.0,59419.0,0.0009075]
[1723904552109,1.32719454,59420.0,59419.0,0.0009075]
[1723904552527,1.33419454,59420.0,59419.0,0.0009075]
[1723904553165,1.34219454,59420.0,59419.0,0.0009075]
[1723904553410,1.32719454,59420.0,59419.0,0.0009075]
[1723904553839,1.33919454,59420.0,59419.0,0.0009075]
[1723904555921,1.24499454,59420.0,59419.0,0.0009075]
[1723904558818,1.33919454,59420.0,59419.0,0.0009075]
[1723904562687,1.24499454,59420.0,59419.0,0.0009075]
[1723904562891,1.33919454,59420.0,59419.0,0.0009075]
[1723904565105,1.36554295,59420.0,59419.0,0.0009075]
[1723904565309,1.24499454,59420.0,59419.0,0.0009075]
[1723904566731,0.99255454,59420.0,59419.0,0.0009075]
[1723904570528,1.24499454,59420.0,59419.0,0.0009075]
[1723904570901,1.27134114,59420.0,59419.0,0.0009075]
[1723904574235,1.24499454,59420.0,59419.0,0.0009075]
[1723904575884,1.27134179,59420.0,59419.0,0.0009075]
[1723904579217,1.33849028,59420.0,59419.0,0.0009075]
[1723904580425,1.27134179,59420.0,59419.0,0.0009075]
[1723904580874,1.52678179,59420.0,59419.0,0.0009075]
[1723904581071,1.52378179,59420.0,59419.0,0.0009075]
[1723904581185,1.59954911,59420.0,59419.0,0.0009075]
[1723904581390,1.52378179,59420.0,59419.0,0.0009075]
[1723904581797,1.52678179,59420.0,59419.0,0.0009075]
[1723904582032,1.6278201,59420.0,59419.0,0.0009075]
[1723904582198,1.6288201,59420.0,59419.0,0.0009075]
[1723904582399,1.6298201,59420.0,59419.0,0.0009075]
[1723904583146,1.6178201,59420.0,59419.0,0.0009075]
[1723904583526,1.6318201,59420.0,59419.0,0.0009075]
[1723904584544,1.6278201,59420.0,59419.0,0.0009075]
[1723904585081,1.60255253,59420.0,59419.0,0.0009075]
[1723904585936,1.58855253,59420.0,59419.0,0.0009075]
[1723904586106,1.60255253,59420.0,59419.0,0.0009075]
[1723904586534,1.52678179,59420.0,59419.0,0.0009075]
[1723904586738,1.60255231,59420.0,59419.0,0.0009075]
[1723904586943,1.52678179,59420.0,59419.0,0.0009075]
[1723904587147,1.60255218,59420.0,59419.0,0.0009075]
[1723904588956,1.52678179,59420.0,59419.0,0.0009075]
[1723904589414,1.27334179,59420.0,59419.0,0.0009075]
[1723904596751,1.36754179,59420.0,59419.0,0.0009075]
[1723904597719,1.43001212,59420.0,59419.0,0.0009075]
[1723904597932,1.36754179,59420.0,59419.0,0.0009075]
[1723904598146,1.69675239,59420.0,59419.0,0.0009075]
[1723904598366,1.62098179,59420.0,59419.0,0.0009075]
[1723904598937,1.62298179,59420.0,59419.0,0.0009075]
[1723904600543,1.69674234,59420.0,59419.0,0.0009075]
[1723904605258,1.62098179,59420.0,59419.0,0.0009075]
[1723904605482,1.69673441,59420.0,59419.0,0.0009075]
[1723904609916,1.69573614,59420.0,59419.0,0.0009075]
[1723904610520,1.20119614,59420.0,59419.0,0.0009075]
[1723904610723,1.35704179,59420.0,59419.0,0.0009075]
[1723904612857,1.35804179,59420.0,59419.0,0.0009075]
[1723904613122,1.71348759,59420.0,59419.0,0.0009075]
[1723904613325,1.715495,59420.0,59419.0,0.0009075]
[1723904613554,1.61448179,59420.0,59419.0,0.0009075]
[1723904615558,1.61248179,59420.0,59419.0,0.0009075]
[1723904615759,1.60948179,59420.0,59419.0,0.0009075]
[1723904616039,1.51528179,59420.0,59419.0,0.0009075]
[1723904616240,1.51628179,59420.0,59419.0,0.0009075]
[1723904616370,1.64255719,59420.0,59419.0,0.0009075]
[1723904616572,1.64455719,59420.0,59419.0,0.0009075]
[1723904616981,1.64155719,59420.0,59419.0,0.0009075]
[1723904618485,1.37788179,59420.0,59419.0,0.0009075]
[1723904619418,1.47208179,59420.0,59419.0,0.0009075]
[1723904619842,1.54785584,59420.0,59419.0,0.0009075]
[1723904620702,1.63025584,59420.0,59419.0,0.0009075]
[1723904620910,1.86721038,59420.0,59419.0,0.0009075]
[1723904621145,1.91971173,59420.0,59419.0,0.0009075]
[1723904621347,1.79343633,59420.0,59419.0,0.0009075]
[1723904623440,1.77943633,59420.0,59419.0,0.0009075]
[1723904624082,1.98332179,59420.0,59419.0,0.0009075]
[1723904624285,1.99732179,59420.0,59419.0,0.0009075]
[1723904624664,1.98332179,59420.0,59419.0,0.0009075]
[1723904624867,1.99732179,59420.0,59419.0,0.0009075]
[1723904625229,1.98332179,59420.0,59419.0,0.0009075]
[1723904625431,2.13493222,59420.0,59419.0,0.0009075]
[1723904625634,2.13426227,59420.0,59419.0,0.0009075]
[1723904626063,1.98265184,59420.0,59419.0,0.0009075]
[1723904626264,2.13426155,59420.0,59419.0,0.0009075]
[1723904626459,2.13426075,59420.0,59419.0,0.0009075]
[1723904627078,2.14826075,59420.0,59419.0,0.0009075]
[1723904627555,2.14824854,59420.0,59419.0,0.0009075]
[1723904627760,2.14823632,59420.0,59419.0,0.0009075]
[1723904627945,2.14823496,59420.0,59419.0,0.0009075]
[1723904628146,2.16820638,59420.0,59419.0,0.0009075]
[1723904628564,1.99665184,59420.0,59419.0,0.0009075]
[1723904629334,2.14822017,59420.0,59419.0,0.0009075]
[1723904629969,1.99665184,59420.0,59419.0,0.0009075]
[1723904631332,1.90245184,59420.0,59419.0,0.0009075]
[1723904631541,1.99265184,59420.0,59419.0,0.0009075]
[1723904631741,1.99465184,59420.0,59419.0,0.0009075]
[1723904631945,1.99665184,59420.0,59419.0,0.0009075]
[1723904633529,2.14817374,59420.0,59419.0,0.0009075]
[1723904633726,1.99665184,59420.0,59419.0,0.0009075]
[1723904634131,2.14817374,59420.0,59419.0,0.0009075]
[1723904634335,1.99665184,59420.0,59419.0,0.0009075]
[1723904634738,2.14817374,59420.0,59419.0,0.0009075]
[1723904635527,1.99665184,59420.0,59419.0,0.0009075]
[1723904635732,2.14817374,59420.0,59419.0,0.0009075]
[1723904635944,1.99665184,59420.0,59419.0,0.0009075]
[1723904636976,1.98265184,59420.0,59419.0,0.0009075]
[1723904637190,1.99665184,59420.0,59419.0,0.0009075]
[1723904637884,2.14814329,59420.0,59419.0,0.0009075]
[1723904638068,1.98265184,59420.0,59419.0,0.0009075]
[1723904638505,1.99665184,59420.0,59419.0,0.0009075]
[1723904638710,2.15420638,59420.0,59419.0,0.0009075]
[1723904638920,2.15420638,59420.0,59411.0,0.2]
[1723904638921,1.781807,59412.0,59411.0,0.2]
[1723904639122,2.15640879,59412.0,59411.0,0.2]
[1723904639328,1.80573479,59412.0,59411.0,0.2]
[1723904639524,1.80773479,59412.0,59411.0,0.2]
[1723904639726,1.80773479,59412.0,59411.0,0.1]
[1723904639944,1.80973479,59412.0,59411.0,0.1]
[1723904640658,1.82373479,59412.0,59411.0,0.1]
[1723904640859,1.91793479,59412.0,59411.0,0.1]
[1723904641492,1.90393479,59412.0,59411.0,0.1]
[1723904641696,1.91793479,59412.0,59411.0,0.1]
[1723904641874,2.11248933,59412.0,59411.0,0.1]
[1723904642212,1.9510575,59412.0,59411.0,0.1]
[1723904643183,2.1895315,59412.0,59411.0,0.1]
[1723904643700,2.2035315,59412.0,59411.0,0.1]
[1723904643910,2.1895315,59412.0,59411.0,0.1]
[1723904644109,2.34100967,59412.0,59411.0,0.1]
[1723904644387,2.50776426,59412.0,59411.0,0.1]
[1723904644571,2.49376426,59412.0,59411.0,0.1]
[1723904644778,1.5344,59408.0,59407.0,0.009075]
[1723904644918,1.82650179,59408.0,59407.0,0.009075]
[1723904645128,1.92650179,59408.0,59407.0,0.009075]
[1723904645494,1.92650179,59408.0,59374.0,0.0796]
[1723904645495,0.12631,59378.0,59374.0,0.0796]
[1723904645697,0.126294,59385.0,59384.0,0.51177509]
[1723904645846,0.126294,59385.0,59384.0,0.0796]
[1723904645847,0.89722654,59385.0,59384.0,0.0796]
[1723904646056,0.89722654,59385.0,59384.0,0.1421]
[1723904648113,0.90222654,59385.0,59384.0,0.1421]
[1723904648526,0.89722654,59385.0,59384.0,0.1421]
[1723904649908,0.90722654,59385.0,59384.0,0.1421]
[1723904650113,0.89722654,59385.0,59384.0,0.1421]
[1723904650508,1.16281554,59385.0,59384.0,0.1430075]
[1723904650718,0.91022654,59385.0,59384.0,0.1430075]
[1723904653742,0.91022654,59385.0,59384.0,0.0009075]
[1723904653743,1.25885689,59385.0,59384.0,0.0009075]
[1723904654045,1.32591554,59385.0,59384.0,0.0009075]
[1723904654232,1.32791554,59385.0,59384.0,0.0009075]
[1723904654434,1.40551554,59385.0,59384.0,0.0009075]
[1723904654866,1.64310454,59385.0,59384.0,0.0009075]
[1723904655070,1.40451554,59385.0,59384.0,0.0009075]
[1723904655274,1.56938579,59385.0,59384.0,0.0009075]
[1723904655789,1.34241554,59385.0,59384.0,0.0009075]
[1723904655992,1.26481554,59385.0,59384.0,0.0009075]
[1723904656201,1.16961554,59385.0,59384.0,0.0762075]
[1723904656409,0.90302654,59385.0,59384.0,0.0762075]
[1723904656630,0.90302654,59385.0,59384.0,0.1389075]
[1723904656838,0.91702654,59385.0,59384.0,0.1389075]
[1723904657132,1.24981554,59385.0,59384.0,1.6389075]
[1723904657330,1.01122654,59385.0,59384.0,1.6389075]
[1723904657729,0.99722654,59385.0,59384.0,1.6389075]
[1723904657932,0.90302654,59385.0,59384.0,1.6389075]
[1723904658112,0.56443754,59385.0,59384.0,1.6389075]
[1723904658317,0.31184854,59385.0,59384.0,1.6389075]
[1723904658632,0.56443754,59385.0,59384.0,1.6389075]
[1723904659559,0.55043754,59385.0,59384.0,1.6389075]
[1723904659963,0.80302654,59385.0,59384.0,1.6389075]
[1723904660613,0.81702654,59385.0,59384.0,1.6389075]
[1723904660788,0.55043754,59385.0,59384.0,1.6389075]
[1723904661242,0.55743754,59385.0,59384.0,1.6389075]
[1723904663898,0.17855454,59385.0,59384.0,1.6389075]
[1723904664144,0.007,59385.0,59384.0,1.6389075]
[1723904664534,0.007,59385.0,59384.0,2.0177965]
[1723904666289,0.007,59385.0,59384.0,2.2703895]
[1723904666495,0.007,59385.0,59384.0,2.29176775]
[1723904666698,0.007,59385.0,59384.0,2.29176742]
[1723904667098,0.126279,59392.0,59389.0,0.0753]
[1723904667276,0.126279,59392.0,59387.0,0.126288]
[1723904667277,0.29783354,59392.0,59391.0,0.0753]
[1723904667685,0.29783354,59392.0,59391.0,1.5753]
[1723904669799,0.30283354,59392.0,59391.0,1.5753]
[1723904670367,0.17655454,59392.0,59391.0,1.5753]
[1723904671556,0.17155454,59392.0,59391.0,1.5753]
[1723904672362,0.252525,59400.0,59394.0,0.0753]
[1723904672549,0.29782654,59396.0,59394.0,0.0753]
[1723904672782,0.04988708,59403.0,59397.0,0.252536]
[1723904672977,0.29781754,59400.0,59398.0,0.138]
[1723904673574,0.29781754,59400.0,59399.0,1.5]
[1723904674227,0.30481754,59400.0,59399.0,1.5]
[1723904675197,0.29781754,59400.0,59399.0,1.5]
[1723904676632,0.30481754,59400.0,59399.0,1.5]
[1723904678630,0.17855454,59400.0,59399.0,1.5]
[1723904679583,0.30481654,59400.0,59399.0,1.5]
[1723904679789,0.17855454,59400.0,59399.0,1.5]
[1723904680021,0.30481654,59400.0,59399.0,1.5]
[1723904683122,0.55734154,59400.0,59399.0,1.5]
[1723904701057,0.55734154,59400.0,59399.0,1.5009075]
[1723904704123,0.89026654,59400.0,59399.0,1.5009075]
[1723904704327,0.70104154,59400.0,59399.0,1.5009075]
[1723904706287,0.55734154,59400.0,59399.0,1.5009075]
[1723904706848,0.17855454,59400.0,59399.0,1.5009075]
[1723904707079,0.007,59400.0,59399.0,1.66887884]
[1723904707648,0.133262,59400.0,59399.0,1.6475075]
[1723904707873,0.126262,59400.0,59399.0,1.5009075]
[1723904708074,0.378787,59400.0,59399.0,1.5009075]
[1723904708297,0.80686654,59400.0,59399.0,1.5009075]
[1723904708566,0.55434154,59400.0,59399.0,1.5009075]
[1723904708884,0.55534154,59400.0,59399.0,1.5009075]
[1723904709085,0.55034154,59400.0,59399.0,1.5009075]
[1723904709506,0.55334154,59400.0,59399.0,1.5009075]
[1723904709723,0.55034154,59400.0,59399.0,1.5009075]
[1723904711212,0.55434154,59400.0,59399.0,1.5009075]
[1723904716295,0.80686654,59400.0,59399.0,1.5009075]
[1723904717958,0.88586654,59400.0,59399.0,1.5009075]
[1723904718161,0.94572087,59400.0,59399.0,1.5009075]
[1723904720363,1.22824587,59400.0,59399.0,1.5009075]
[1723904720588,1.25460245,59400.0,59399.0,1.5009075]
[1723904720809,1.50712745,59400.0,59399.0,1.5009075]
[1723904720984,1.60816918,59400.0,59399.0,1.5009075]
[1723904721212,1.63342961,59400.0,59399.0,1.5009075]
[1723904721419,1.60811807,59400.0,59399.0,1.5009075]
[1723904721834,1.60811807,59400.0,59399.0,0.0009075]
[1723904721835,1.63342961,59400.0,59399.0,0.0009075]
[1723904722295,1.63042961,59400.0,59399.0,0.0009075]
[1723904722505,1.50312745,59400.0,59399.0,0.0009075]
[1723904722652,1.63942961,59400.0,59399.0,0.0009075]
[1723904723099,1.89388409,59400.0,59399.0,0.0009075]
[1723904723328,1.90288409,59400.0,59399.0,0.0009075]
[1723904723653,2.02904383,59400.0,59399.0,0.0009075]
[1723904723850,2.02904369,59400.0,59399.0,0.0009075]
[1723904724237,2.02904412,59400.0,59399.0,0.0009075]
[1723904724456,1.90288409,59400.0,59399.0,0.0009075]
[1723904724665,2.02901973,59400.0,59399.0,0.0009075]
[1723904725830,1.90288409,59400.0,59399.0,0.0009075]
[1723904726427,2.0290052,59400.0,59399.0,0.0009075]
[1723904726627,1.87988409,59400.0,59399.0,0.0009075]
[1723904726827,1.73025757,59400.0,59399.0,0.0009075]
[1723904727128,1.72825757,59400.0,59399.0,0.0009075]
[1723904727593,1.62735909,59400.0,59399.0,0.0009075]
[1723904727877,1.62635909,59400.0,59399.0,0.0009075]
[1723904728313,1.62735909,59400.0,59399.0,0.0009075]
[1723904728518,1.67779811,59400.0,59399.0,0.0009075]
[1723904729053,1.62735909,59400.0,59399.0,0.0009075]
[1723904729249,1.67779947,59400.0,59399.0,0.0009075]
[1723904731326,1.42427447,59400.0,59399.0,0.0009075]
[1723904731529,0.84552087,59400.0,59399.0,0.0009075]
[1723904731741,0.81552087,59400.0,59399.0,0.0009075]
[1723904732144,0.31047087,59400.0,59399.0,0.0794075]
[1723904732670,0.29747087,59400.0,59399.0,0.0794075]
[1723904732871,0.80252087,59400.0,59399.0,1.5009075]
[1723904733077,0.81052087,59400.0,59399.0,1.5009075]
[1723904733283,0.80252087,59400.0,59399.0,1.5009075]
[1723904733686,0.80952087,59400.0,59399.0,1.5009075]
[1723904733893,0.80252087,59400.0,59399.0,1.5009075]
[1723904734102,1.22424587,59400.0,59399.0,1.5009075]
[1723904734306,1.23224587,59400.0,59399.0,1.5009075]
[1723904734507,1.22424587,59400.0,59399.0,1.5009075]
[1723904735295,1.08504587,59400.0,59399.0,1.5009075]
[1723904735666,1.08587087,59400.0,59399.0,1.5009075]
[1723904735796,1.09287087,59400.0,59399.0,1.5009075]
[1723904736318,1.08587087,59400.0,59399.0,1.5009075]
[1723904736529,1.09887087,59400.0,59399.0,1.5009075]
[1723904737942,1.19307087,59400.0,59399.0,1.5009075]
[1723904738157,1.33457087,59400.0,59399.0,1.5009075]
[1723904738369,1.36092962,59400.0,59399.0,1.5009075]
[1723904738971,1.34792962,59400.0,59399.0,1.5009075]
[1723904739372,1.36092962,59400.0,59399.0,1.5009075]
[1723904739578,1.37110523,59400.0,59399.0,1.5009075]
[1723904741101,1.36092962,59400.0,59399.0,1.5009075]
[1723904741281,1.33457087,59400.0,59399.0,1.5009075]
[1723904742115,1.19307087,59400.0,59399.0,1.5009075]
[1723904744161,0.84634587,59400.0,59399.0,1.5668075]
[1723904744352,0.81634587,59400.0,59399.0,1.5668075]
[1723904745699,0.13974133,59400.0,59399.0,1.6500075]
[1723904746522,0.37926633,59400.0,59399.0,1.6500075]
[1723904746923,0.13974133,59400.0,59399.0,0.1500075]
[1723904747128,0.39226633,59400.0,59399.0,0.1500075]
[1723904747336,0.37926633,59400.0,59399.0,1.6500075]
[1723904747542,0.13174133,59400.0,59399.0,1.6500075]
[1723904748940,0.38426633,59400.0,59399.0,1.6500075]
[1723904749480,0.13174133,59400.0,59399.0,1.6500075]
[1723904752749,0.005825,59400.0,59399.0,1.6500075]
[1723904753745,0.132087,59400.0,59399.0,1.6500075]
[1723904761194,0.384612,59400.0,59399.0,1.5009075]
[1723904761421,0.476312,59400.0,59399.0,1.5009075]
[1723904761648,0.162087,59400.0,59399.0,1.5009075]
[1723904762999,0.162087,59400.0,59399.0,1.6465075]
[1723904763483,0.035825,59400.0,59399.0,1.6465075]
[1723904764187,0.005825,59400.0,59399.0,1.7727715]
[1723904765589,0.000825,59400.0,59399.0,1.7084715]
[1723904765835,0.001825,59400.0,59399.0,1.7084715]
[1723904766317,0.000825,59400.0,59399.0,1.7084715]
[1723904766549,0.001825,59400.0,59399.0,1.7084715]
[1723904767628,0.001825,59400.0,59399.0,1.5822075]
[1723904767835,0.128087,59400.0,59399.0,1.5009075]
[1723904772422,0.128087,59400.0,59399.0,1.5222827]
[1723904772639,0.128087,59400.0,59399.0,1.5009075]
[1723904772640,0.001825,59400.0,59399.0,1.5009075]
[1723904772858,0.128087,59400.0,59399.0,1.5009075]
[1723904773294,0.128087,59400.0,59399.0,1.52228277]
[1723904774910,0.128087,59400.0,59399.0,1.5009075]
[1723904775143,0.128087,59400.0,59399.0,1.5222827]
[1723904778922,0.128087,59400.0,59399.0,1.52228247]
[1723904780762,0.252512,59404.0,59399.0,1.52228247]
[1723904780971,0.126256,59403.0,59400.0,0.14763697]
[1723904781182,0.126256,59403.0,59401.0,0.02137497]
[1723904781389,0.126256,59403.0,59402.0,1.52137497]
[1723904782643,0.006,59404.0,59402.0,1.52137497]
[1723904782843,0.126254,59404.0,59402.0,1.5]
[1723904783074,0.126255,59404.0,59402.0,1.5]
[1723904783276,0.03,59406.0,59402.0,1.5]
[1723904783277,0.131256,59403.0,59402.0,1.5]
[1723904783481,0.131256,59403.0,59402.0,1.52137479]
[1723904783687,0.126256,59403.0,59402.0,1.52137479]
[1723904784923,0.126256,59403.0,59402.0,1.58527479]
[1723904785552,0.127081,59403.0,59402.0,1.52137479]
[1723904785760,0.132081,59403.0,59402.0,1.52137479]
[1723904787257,0.005825,59403.0,59402.0,1.52137473]
[1723904788233,0.132081,59403.0,59402.0,1.52137473]
[1723904790923,0.132081,59403.0,59402.0,1.52137417]
[1723904791149,0.005825,59403.0,59402.0,1.52137417]
[1723904792381,0.005825,59403.0,59402.0,2.3436372]
[1723904792588,0.005825,59403.0,59402.0,3.07435965]
[1723904792790,0.005825,59403.0,59402.0,2.94817707]
[1723904792994,0.005825,59403.0,59402.0,2.95745124]
[1723904793122,0.005825,59403.0,59402.0,2.95845124]
[1723904793331,0.005825,59403.0,59402.0,3.05265124]
[1723904793577,0.000825,59403.0,59402.0,3.05265124]
[1723904794470,0.001825,59403.0,59402.0,3.05865124]
[1723904794873,0.001825,59403.0,59402.0,2.99901379]
[1723904795080,0.001825,59403.0,59402.0,3.05864505]
[1723904795280,0.001825,59403.0,59402.0,3.04937139]
[1723904795683,0.001825,59403.0,59402.0,3.17557666]
[1723904795885,0.000825,59403.0,59402.0,3.17157666]
[1723904796089,0.001825,59403.0,59402.0,3.17757666]
[1723904796914,0.001825,59403.0,59402.0,3.05137139]
[1723904797197,0.001825,59403.0,59402.0,3.17754836]
[1723904797432,0.001825,59403.0,59402.0,3.17754883]
[1723904797676,0.001825,59403.0,59402.0,3.17752447]
[1723904798124,0.001825,59403.0,59402.0,3.37207901]
[1723904799561,0.001825,59403.0,59402.0,3.32172094]
[1723904799796,0.001825,59403.0,59402.0,3.47307828]
[1723904800036,0.001825,59403.0,59402.0,3.37587828]
[1723904800271,0.001825,59403.0,59402.0,3.47007828]
[1723904800480,0.001825,59403.0,59402.0,3.44109091]
[1723904800693,0.001825,59403.0,59402.0,3.31493816]
[1723904800893,0.001825,59403.0,59402.0,3.44273745]
[1723904800894,0.000825,59403.0,59402.0,3.44273745]
[1723904801098,0.000825,59403.0,59402.0,3.43873846]
[1723904801314,0.001825,59403.0,59402.0,3.4147513]
[1723904801730,0.001825,59403.0,59402.0,3.4167513]
[1723904801921,0.001825,59403.0,59402.0,3.4187513]
[1723904802557,0.001825,59403.0,59402.0,3.3178801]
[1723904802752,0.001825,59403.0,59402.0,3.3138801]
[1723904802958,0.001825,59403.0,59402.0,3.3178801]
[1723904803198,0.000825,59403.0,59402.0,3.3128801]
[1723904803442,0.000825,59403.0,59402.0,3.3238801]
[1723904803688,0.001825,59403.0,59402.0,3.39950916]
[1723904804671,0.001825,59403.0,59402.0,2.95043037]
[1723904805152,0.001825,59403.0,59402.0,3.0008474]
[1723904805488,0.001825,59403.0,59402.0,2.95043037]
[1723904805688,0.001825,59403.0,59402.0,3.02605576]
[1723904806757,0.000825,59403.0,59402.0,3.01505576]
[1723904806996,0.000825,59403.0,59402.0,2.99368593]
[1723904807170,0.001825,59403.0,59402.0,2.95143117]
[1723904808203,0.001825,59403.0,59402.0,3.02705656]
[1723904808763,0.001825,59403.0,59402.0,3.40051618]
[1723904809525,0.001825,59403.0,59402.0,3.42950338]
[1723904809886,0.001825,59403.0,59402.0,3.42948342]
[1723904811007,0.001825,59403.0,59402.0,3.4294761]
[1723904811212,0.001825,59403.0,59402.0,3.35386382]
[1723904811412,0.001825,59403.0,59402.0,3.30351331]
[1723904811616,0.001825,59403.0,59402.0,3.35386112]
[1723904812416,0.001825,59403.0,59402.0,3.45467749]
[1723904812706,0.001825,59403.0,59402.0,3.35386112]
[1723904813647,0.001825,59403.0,59402.0,3.42945316]
[1723904813842,0.001825,59403.0,59402.0,3.42545316]
[1723904814892,0.001825,59403.0,59402.0,3.42545563]
[1723904815299,0.001825,59403.0,59402.0,3.42545786]
[1723904816107,0.001825,59403.0,59402.0,3.43473026]
[1723904817715,0.001825,59403.0,59402.0,3.43473091]
[1723904818116,0.001825,59403.0,59402.0,3.43373091]
[1723904818489,0.001825,59403.0,59402.0,3.43373547]
[1723904818605,0.001825,59403.0,59402.0,3.06027901]
[1723904819118,0.001825,59403.0,59402.0,3.00065592]
[1723904819344,0.001825,59403.0,59402.0,3.06027898]
[1723904819545,0.001825,59403.0,59402.0,2.99637894]
[1723904819725,0.001825,59403.0,59402.0,2.8825277]
[1723904819925,0.001825,59403.0,59402.0,2.83491449]
[1723904820362,0.001825,59403.0,59402.0,2.8853233]
[1723904820868,0.001825,59403.0,59402.0,2.88632626]
[1723904821068,0.001825,59403.0,59402.0,2.8883253]
[1723904821272,0.001825,59403.0,59402.0,2.89759837]
[1723904822042,0.001825,59403.0,59402.0,2.84718661]
[1723904822381,0.001825,59403.0,59402.0,2.89760229]
[1723904822591,0.001825,59403.0,59402.0,2.89760556]
[1723904822798,0.001825,59403.0,59402.0,2.89760537]
[1723904823004,0.001825,59403.0,59402.0,2.89760574]
[1723904823431,0.001825,59403.0,59402.0,2.84718661]
[1723904823829,0.001825,59403.0,59402.0,2.89761084]
[1723904824031,0.001825,59403.0,59402.0,2.84718661]
[1723904824234,0.001825,59403.0,59402.0,2.92281417]
[1723904824440,0.001825,59403.0,59402.0,3.29627909]
[1723904825442,0.001825,59403.0,59402.0,3.45939445]
[1723904825789,0.001825,59403.0,59402.0,3.50494816]
[1723904825995,0.001825,59403.0,59402.0,3.49567002]
[1723904826311,0.001825,59403.0,59402.0,3.50494219]
[1723904826516,0.001825,59403.0,59402.0,3.66001667]
[1723904826719,0.000825,59407.0,59406.0,0.869747]
[1723904826921,0.000825,59407.0,59406.0,2.45383308]
[1723904827122,0.000825,59407.0,59406.0,2.55071597]
[1723904827303,0.000825,59407.0,59406.0,3.71557608]
[1723904827505,0.000825,59407.0,59406.0,4.27211344]
[1723904827704,0.000825,59407.0,59406.0,4.23818028]
[1723904828403,0.000825,59407.0,59406.0,4.23816127]
[1723904828622,0.001825,59407.0,59406.0,4.25116127]
[1723904829201,0.001825,59407.0,59406.0,4.18354387]
[1723904829403,0.001865,59407.0,59406.0,4.33465298]
[1723904829610,0.001865,59407.0,59406.0,4.18353088]
[1723904829819,0.001865,59407.0,59406.0,4.17421857]
[1723904829995,0.000865,59407.0,59406.0,4.17048501]
[1723904830399,0.000865,59407.0,59406.0,4.18448501]
[1723904831044,0.000865,59407.0,59406.0,4.09028501]
[1723904831247,0.000865,59407.0,59406.0,4.32161923]
[1723904831396,0.000865,59407.0,59406.0,4.17048501]
[1723904831601,0.000865,59407.0,59406.0,3.28841589]
[1723904831798,0.000865,59407.0,59406.0,3.79895449]
[1723904832005,0.000865,59407.0,59406.0,3.64780185]
[1723904832319,0.000865,59407.0,59406.0,3.79895449]
[1723904832497,0.000865,59407.0,59406.0,4.32169871]
[1723904833171,0.000865,59407.0,59406.0,4.17054607]
[1723904833323,0.000865,59407.0,59406.0,3.66180185]
[1723904833527,0.000865,59407.0,59406.0,4.33569822]
[1723904833731,0.000865,59407.0,59406.0,4.31243655]
[1723904833933,0.000865,59407.0,59406.0,4.33570045]
[1723904834138,0.000865,59407.0,59406.0,3.56595409]
[1723904834334,0.000865,59407.0,59406.0,3.64782752]
[1723904834539,0.000865,59407.0,59406.0,3.66182752]
[1723904834697,0.000865,59407.0,59406.0,4.33572712]
[1723904834898,0.000865,59407.0,59406.0,4.18457448]
[1723904835321,0.000865,59407.0,59406.0,3.65255893]
[1723904835524,0.000865,59407.0,59406.0,3.81298034]
[1723904835804,0.000865,59407.0,59406.0,4.33573192]
[1723904836180,0.000865,59407.0,59406.0,4.33573103]
[1723904836382,0.000865,59407.0,59406.0,4.18457839]
[1723904836587,0.000865,59407.0,59406.0,4.3357269]
[1723904836990,0.000825,59407.0,59406.0,4.3357269]
[1723904837638,0.000825,59407.0,59406.0,4.3358073]
[1723904837986,0.000825,59407.0,59406.0,4.18457371]